bitfinex/quotes_BTCUSD_20220207
["timestamp","ask_amount","ask_price","bid_price","bid_amount"]
[1644264717365,0.19391106,44442.0,44435.0,0.321579]
[1644264717766,0.00029145,44442.0,44435.0,0.321579]
[1644264718066,0.00063341,44441.0,44435.0,0.321579]
[1644264718271,0.00063341,44441.0,44435.0,0.371579]
[1644264719068,0.00029145,44442.0,44435.0,0.371579]
[1644264719267,0.00063341,44440.0,44435.0,0.371579]
[1644264720270,0.00029145,44442.0,44435.0,0.371579]
[1644264720513,0.0174247,44443.0,44435.0,0.371579]
[1644264720514,0.00063341,44440.0,44435.0,0.371579]
[1644264720920,0.00029148,44441.0,44435.0,0.371579]
[1644264721113,0.2934417,44448.0,44435.0,0.371579]
[1644264721114,0.00029148,44442.0,44435.0,0.371579]
[1644264721314,0.00203347,44441.0,44435.0,0.371579]
[1644264722617,0.00203347,44441.0,44435.0,0.601579]
[1644264722817,0.18970527,44443.0,44435.0,0.601579]
[1644264724166,0.00019002,44442.0,44436.0,0.321579]
[1644264724366,0.28716876,44442.0,44435.0,0.28]
[1644264724569,0.00019002,44442.0,44435.0,0.28]
[1644264724770,0.00019002,44442.0,44435.0,0.23]
[1644264724966,0.18970527,44443.0,44435.0,0.23]
[1644264725166,0.18970527,44443.0,44435.0,0.23077504]
[1644264725469,0.0006318,44442.0,44435.0,0.23077504]
[1644264726070,0.0006318,44442.0,44435.0,0.28077504]
[1644264726266,0.30752059,44443.0,44435.0,0.28]
[1644264726466,0.00162505,44440.0,44435.0,0.28077504]
[1644264726666,0.20314004,44439.0,44435.0,0.23077504]
[1644264726868,0.28913735,44438.0,44435.0,0.23077504]
[1644264727069,0.321579,44437.0,44435.0,0.23077504]
[1644264727269,0.28363111,44436.0,44435.0,0.23077504]
[1644264727468,0.28363111,44436.0,44435.0,0.23]
[1644264727668,0.86260713,44436.0,44435.0,0.23]
[1644264728919,1.4,44434.0,44433.0,0.00077506]
[1644264729124,1.630008,44434.0,44433.0,0.00077506]
[1644264729319,1.675108,44434.0,44433.0,0.00077506]
[1644264729522,1.69676747,44434.0,44433.0,0.00077506]
[1644264729720,1.69676747,44434.0,44418.0,0.05]
[1644264729920,1.46675947,44434.0,44421.0,0.06857942]
[1644264730119,0.21855699,44432.0,44421.0,0.06857942]
[1644264730320,0.0451,44431.0,44419.0,0.05]
[1644264730721,0.045,44431.0,44419.0,0.05]
[1644264731325,0.21573302,44428.0,44419.0,0.05]
[1644264731522,0.25159639,44431.0,44419.0,0.4]
[1644264731764,0.32393146,44430.0,44421.0,0.05]
[1644264731967,0.02165947,44434.0,44427.0,0.05]
[1644264732166,0.02165947,44434.0,44428.0,0.321579]
[1644264732367,0.02165947,44434.0,44430.0,0.321579]
[1644264732765,0.02165947,44434.0,44430.0,0.15]
[1644264733268,0.02165947,44434.0,44430.0,0.38]
[1644264733665,0.02165947,44434.0,44430.0,0.28077453]
[1644264734168,0.21639952,44431.0,44430.0,0.28077453]
[1644264734368,0.21639952,44431.0,44430.0,0.23077453]
[1644264734566,0.21639952,44431.0,44430.0,0.23]
[1644264734966,0.31514188,44436.0,44430.0,0.23]
[1644264735426,0.24544023,44438.0,44430.0,0.23]
[1644264735820,0.24544023,44438.0,44430.0,0.28]
[1644264736023,0.23690434,44440.0,44432.0,0.00077451]
[1644264736223,0.23661284,44440.0,44432.0,0.00077451]
[1644264736625,0.23690434,44440.0,44432.0,0.00077451]
[1644264736820,0.23661284,44440.0,44432.0,0.00077451]
[1644264737020,0.26609451,44438.0,44430.0,0.28]
[1644264737222,0.26609451,44438.0,44434.0,0.00077448]
[1644264737422,0.32113,44437.0,44434.0,0.00077448]
[1644264737622,0.0002915,44438.0,44434.0,0.00077448]
[1644264737822,0.0002915,44439.0,44434.0,0.00077448]
[1644264738024,0.0002915,44441.0,44434.0,0.00077448]
[1644264738225,0.0002915,44442.0,44435.0,0.05]
[1644264738427,0.0002915,44442.0,44434.0,0.3]
[1644264738428,0.0002915,44441.0,44440.0,0.37113]
[1644264738622,0.00092327,44442.0,44441.0,0.32113]
[1644264738825,0.00063177,44442.0,44441.0,0.44938568]
[1644264739023,0.00063177,44442.0,44441.0,0.36623]
[1644264739477,0.0195337,44443.0,44441.0,0.36623]
[1644264740274,0.0195337,44443.0,44441.0,0.46623]
[1644264740474,0.00092332,44444.0,44441.0,0.46623]
[1644264740673,0.3636,44450.0,44441.0,0.0451]
[1644264740674,0.0002915,44449.0,44441.0,0.0451]
[1644264740877,0.00063182,44444.0,44441.0,0.0451]
[1644264741077,0.00063182,44444.0,44442.0,0.32113]
[1644264741377,0.00063182,44444.0,44443.0,0.05]
[1644264741781,0.23251775,44445.0,44441.0,0.32113]
[1644264741975,0.23251775,44445.0,44438.0,0.0451]
[1644264742176,0.23251775,44445.0,44439.0,0.32113]
[1644264742376,0.00063182,44446.0,44439.0,0.32113]
[1644264742579,0.0002915,44445.0,44440.0,0.05]
[1644264742779,0.11366646,44442.0,44436.0,0.23100972]
[1644264743022,0.32113,44440.0,44435.0,0.02047019]
[1644264743222,0.3636,44450.0,44435.0,0.02121961]
[1644264743223,0.00063181,44442.0,44435.0,0.02121961]
[1644264743420,0.00063181,44442.0,44439.0,0.05]
[1644264743618,0.00063181,44442.0,44435.0,0.07121961]
[1644264743821,0.00063181,44442.0,44435.0,0.01558378]
[1644264744020,0.24915846,44438.0,44435.0,0.01558378]
[1644264744222,0.22409,44437.0,44435.0,0.01483436]
[1644264744423,0.22409,44437.0,44435.0,0.23074941]
[1644264745519,0.22409,44437.0,44435.0,0.23]
[1644264746768,0.24944996,44438.0,44435.0,0.23]
[1644264746769,0.60225161,44436.0,44435.0,0.23]
[1644264748571,0.60225161,44436.0,44433.0,0.00072413]
[1644264748572,0.22409,44434.0,44433.0,0.00072413]
[1644264748772,0.53173487,44434.0,44433.0,0.00072413]
[1644264748970,0.87393634,44434.0,44426.0,0.02136035]
[1644264749174,0.87422784,44434.0,44426.0,0.02136035]
[1644264749482,0.87422784,44434.0,44431.0,0.00072587]
[1644264749671,0.87393634,44434.0,44431.0,0.00072587]
[1644264750274,0.32113,44432.0,44426.0,0.02136035]
[1644264750525,0.27661627,44431.0,44430.0,0.00072588]
[1644264750825,0.50070627,44431.0,44430.0,0.00072588]
[1644264751222,0.73112956,44431.0,44430.0,0.00072588]
[1644264751422,0.73112956,44431.0,44422.0,0.01973755]
[1644264751622,0.34947613,44424.0,44422.0,0.01973755]
[1644264752028,0.54796577,44424.0,44422.0,0.01973755]
[1644264752222,0.34947613,44424.0,44422.0,0.01973755]
[1644264752421,0.30776162,44430.0,44422.0,0.01973755]
[1644264752625,0.32113,44429.0,44422.0,0.01973755]
[1644264752823,0.0451,44431.0,44422.0,0.01973755]
[1644264753027,0.269184,44431.0,44430.0,0.36227463]
[1644264753322,1.15461764,44431.0,44430.0,0.36227463]
[1644264753722,1.16224223,44431.0,44430.0,0.36227463]
[1644264754167,0.84272151,44431.0,44430.0,0.36227463]
[1644264754369,0.83264088,44431.0,44430.0,0.36227463]
[1644264754768,0.61996888,44431.0,44430.0,0.36227463]
[1644264754975,0.11383169,44442.0,44430.0,0.36227463]
[1644264754976,0.0002915,44438.0,44430.0,0.36227463]
[1644264755171,0.53211749,44437.0,44430.0,0.36227463]
[1644264755771,0.2683418,44433.0,44430.0,0.59227463]
[1644264756771,0.30773349,44437.0,44430.0,0.59227463]
[1644264756973,0.19677788,44436.0,44430.0,0.59227463]
[1644264757772,0.24434627,44434.0,44431.0,0.00072576]
[1644264758619,0.24434627,44434.0,44430.0,0.59227463]
[1644264758818,0.24434627,44434.0,44430.0,0.5930004]
[1644264759823,0.24434627,44434.0,44430.0,0.59227463]
[1644264760020,0.24434627,44434.0,44430.0,0.59300041]
[1644264760819,0.24414627,44434.0,44430.0,0.64300041]
[1644264761020,0.24414627,44434.0,44430.0,0.64227463]
[1644264761220,0.24414627,44434.0,44430.0,0.64300041]
[1644264761521,0.28371746,44439.0,44430.0,0.64300041]
[1644264762373,0.23720796,44437.0,44430.0,0.64227463]
[1644264762571,0.224084,44436.0,44432.0,0.00072575]
[1644264763568,0.224084,44436.0,44430.0,0.59227463]
[1644264763769,0.224084,44436.0,44432.0,0.00072575]
[1644264764771,0.224084,44436.0,44430.0,0.59227463]
[1644264764975,0.224084,44436.0,44432.0,0.00072575]
[1644264765818,0.224084,44436.0,44430.0,0.59227463]
[1644264766019,0.223984,44436.0,44432.0,0.00072575]
[1644264767022,0.223984,44436.0,44430.0,0.59227463]
[1644264767223,0.23720796,44437.0,44432.0,0.00072575]
[1644264767421,0.223991,44436.0,44432.0,0.00072575]
[1644264768422,0.23720796,44437.0,44432.0,0.00072575]
[1644264769021,0.23334601,44437.0,44432.0,0.00072575]
[1644264769473,0.23334601,44437.0,44430.0,0.64227463]
[1644264769773,0.23334601,44437.0,44432.0,0.00072575]
[1644264769972,0.223991,44440.0,44432.0,0.00072575]
[1644264770772,0.25978864,44439.0,44430.0,0.72425962]
[1644264770972,0.223991,44438.0,44434.0,0.00072573]
[1644264771874,0.223991,44438.0,44430.0,0.72425962]
[1644264772074,0.25978864,44439.0,44434.0,0.00072573]
[1644264772277,0.223991,44438.0,44434.0,0.00072573]
[1644264772681,0.00063177,44442.0,44436.0,0.05]
[1644264773121,0.01823939,44443.0,44438.0,0.05]
[1644264773322,0.00623939,44443.0,44435.0,0.00072571]
[1644264773621,0.00063181,44442.0,44438.0,0.05]
[1644264773820,0.00063181,44442.0,44438.0,0.1]
[1644264774218,0.00063181,44442.0,44438.0,0.05]
[1644264774419,0.00623939,44443.0,44438.0,0.05]
[1644264774720,0.23806328,44440.0,44435.0,0.05072572]
[1644264774922,0.23806328,44440.0,44435.0,0.00072572]
[1644264775324,0.223991,44438.0,44435.0,0.00072572]
[1644264775520,0.223991,44438.0,44433.0,0.02062172]
[1644264775721,0.2342393,44436.0,44435.0,0.00072571]
[1644264775921,0.4582303,44436.0,44435.0,0.00072571]
[1644264776668,0.4582303,44436.0,44430.0,0.59227463]
[1644264776869,0.00262701,44437.0,44433.0,0.00072573]
[1644264777872,0.26774117,44437.0,44430.0,0.64227463]
[1644264778071,0.26121418,44433.0,44430.0,0.64227463]
[1644264778671,0.28532967,44432.0,44430.0,0.59227463]
[1644264779070,0.223991,44431.0,44430.0,0.59227463]
[1644264779270,0.56063419,44431.0,44430.0,0.07730518]
[1644264779671,0.86840973,44431.0,44430.0,0.07730518]
[1644264781024,0.86840973,44431.0,44428.0,0.00072579]
[1644264781025,0.223991,44429.0,44428.0,0.00072579]
[1644264781223,0.423991,44429.0,44428.0,5.79e-06]
[1644264781423,1.13406523,44429.0,44428.0,5.79e-06]
[1644264781622,0.84104546,44429.0,44421.0,0.02073637]
[1644264781820,0.223991,44427.0,44421.0,0.02073637]
[1644264782026,0.31260539,44423.0,44421.0,0.02073637]
[1644264782223,0.223991,44422.0,44421.0,0.02073637]
[1644264782622,0.223991,44422.0,44417.0,0.1]
[1644264782823,0.44184405,44422.0,44417.0,0.1]
[1644264783025,0.29585253,44421.0,44417.0,0.1]
[1644264783222,0.223991,44420.0,44417.0,0.1]
[1644264784268,0.21523595,44419.0,44417.0,0.1]
[1644264784472,0.223991,44418.0,44417.0,0.1]
[1644264785271,0.50454049,44418.0,44417.0,0.1]
[1644264785968,0.51848874,44418.0,44417.0,0.1]
[1644264786172,1.01056495,44418.0,44417.0,0.1]
[1644264786371,0.78657395,44418.0,44409.0,0.02007431]
[1644264786573,0.3404012,44416.0,44415.0,0.00077473]
[1644264786770,1.1022039,44416.0,44415.0,0.00077473]
[1644264786972,1.0522039,44416.0,44415.0,0.00077473]
[1644264787370,1.10955493,44416.0,44415.0,0.00077473]
[1644264787570,0.31547193,44409.0,44408.0,0.02138483]
[1644264787771,0.76631382,44409.0,44408.0,0.02138483]
[1644264788024,1.06166818,44409.0,44408.0,0.02138483]
[1644264788226,1.11166818,44409.0,44408.0,0.02138483]
[1644264788433,1.21983173,44409.0,44408.0,0.02138483]
[1644264788625,1.4460865,44409.0,44399.0,0.02176367]
[1644264788925,0.24876951,44402.0,44399.0,0.02176367]
[1644264789123,0.63150142,44402.0,44399.0,0.02176367]
[1644264789325,0.223991,44401.0,44399.0,0.02176367]
[1644264789529,0.15,44399.0,44386.0,0.05]
[1644264789728,0.269091,44398.0,44386.0,0.05]
[1644264790025,0.2754999,44398.0,44390.0,0.23]
[1644264790227,0.2754999,44398.0,44392.0,0.00077446]
[1644264790425,0.60577596,44393.0,44392.0,0.00077446]
[1644264790625,0.82976696,44393.0,44392.0,0.00077446]
[1644264791229,0.223991,44393.0,44388.0,0.05]
[1644264791427,0.223991,44392.0,44390.0,0.00077448]
[1644264791673,0.75,44391.0,44390.0,0.00017448]
[1644264791870,0.973991,44391.0,44390.0,0.00017448]
[1644264792272,1.23492673,44391.0,44383.0,0.0011]
[1644264792472,0.223991,44390.0,44383.0,0.0011]
[1644264793071,0.223991,44390.0,44389.0,0.05]
[1644264794373,0.223991,44390.0,44383.0,0.0011]
[1644264794573,0.46758607,44390.0,44388.0,0.05]
[1644264794975,0.223991,44390.0,44388.0,0.05]
[1644264795433,0.01905642,44393.0,44388.0,0.05]
[1644264795624,0.223991,44392.0,44384.0,0.00077456]
[1644264795824,0.223991,44392.0,44391.0,0.05]
[1644264796624,0.02032042,44395.0,44391.0,0.05]
[1644264797226,0.02032042,44395.0,44391.0,0.18521571]
[1644264797428,0.02032042,44395.0,44391.0,0.05]
[1644264797625,0.223991,44394.0,44391.0,0.05]
[1644264798833,7.823e-05,44395.0,44392.0,0.28833426]
[1644264799027,7.823e-05,44395.0,44394.0,0.361124]
[1644264800073,7.823e-05,44395.0,44394.0,0.04]
[1644264800272,7.823e-05,44395.0,44390.0,0.04]
[1644264800471,0.23173677,44395.0,44390.0,0.04]
[1644264801271,7.823e-05,44395.0,44394.0,0.14]
[1644264802474,0.22406923,44395.0,44394.0,0.14]
[1644264803334,0.23406923,44395.0,44394.0,0.14]
[1644264803932,0.22406923,44395.0,44394.0,0.14]
[1644264804334,0.22406923,44395.0,44394.0,0.135]
[1644264805135,0.23406923,44395.0,44394.0,0.0001]
[1644264806539,0.22406923,44395.0,44394.0,0.0001]
[1644264808385,0.22406923,44395.0,44394.0,0.0401]
[1644264808988,0.22406923,44395.0,44394.0,0.0001]
[1644264813525,0.26208811,44400.0,44394.0,0.0001]
[1644264813726,7.823e-05,44397.0,44394.0,0.0001]
[1644264813926,7.823e-05,44397.0,44391.0,0.05]
[1644264814975,0.2257521,44394.0,44391.0,0.05]
[1644264815183,0.2257521,44394.0,44388.0,0.01944378]
[1644264815184,0.22583033,44394.0,44388.0,0.01944378]
[1644264815378,0.32364445,44391.0,44388.0,0.01944378]
[1644264815577,0.0451,44390.0,44388.0,0.01944378]
[1644264816876,0.0451,44390.0,44379.0,0.02130081]
[1644264817085,0.28370716,44382.0,44379.0,0.02130081]
[1644264818129,0.0451,44386.0,44381.0,0.05]
[1644264818330,0.0451,44386.0,44384.0,0.05]
[1644264818531,0.3669,44393.0,44384.0,0.05]
[1644264818731,0.3669,44393.0,44389.0,0.05]
[1644264818732,7.823e-05,44391.0,44389.0,0.05]
[1644264820531,0.000136,44390.0,44388.0,0.0007734]
[1644264820732,0.00021423,44390.0,44388.0,0.0007734]
[1644264820934,0.000136,44389.0,44388.0,0.0007734]
[1644264821431,0.000136,44389.0,44386.0,0.00077342]
[1644264821677,0.000136,44389.0,44386.0,0.05063742]
[1644264821878,7.823e-05,44390.0,44386.0,0.05063742]
[1644264822079,7.823e-05,44390.0,44389.0,0.049864]
[1644264824281,7.823e-05,44390.0,44387.0,0.0007734]
[1644264824887,7.823e-05,44390.0,44386.0,0.049864]
[1644264825086,7.823e-05,44390.0,44386.0,0.05063742]
[1644264825424,7.823e-05,44390.0,44389.0,0.049864]
[1644264826220,7.823e-05,44390.0,44381.0,0.30949087]
[1644264826221,7.823e-05,44390.0,44387.0,0.0007734]
[1644264827319,7.823e-05,44390.0,44386.0,0.049864]
[1644264827526,7.823e-05,44390.0,44386.0,0.05063742]
[1644264827721,0.000136,44387.0,44386.0,0.05063742]
[1644264828021,7.823e-05,44390.0,44386.0,0.00077342]
[1644264828421,0.000136,44388.0,44386.0,0.049864]
[1644264828621,0.000136,44388.0,44386.0,0.05063742]
[1644264828921,7.823e-05,44390.0,44386.0,0.05063742]
[1644264829770,7.823e-05,44390.0,44386.0,0.049864]
[1644264829971,7.823e-05,44390.0,44389.0,0.049864]
[1644264833420,7.823e-05,44390.0,44383.0,0.049864]
[1644264833421,0.00021423,44390.0,44383.0,0.049864]
[1644264833622,7.823e-05,44390.0,44387.0,0.0007734]
[1644264833818,0.000136,44388.0,44387.0,0.0007734]
[1644264834416,0.23410037,44388.0,44381.0,0.02121749]
[1644264834618,0.31640052,44384.0,44381.0,0.02121749]
[1644264835021,0.31640052,44384.0,44380.0,0.05010335]
[1644264835216,0.31640052,44384.0,44380.0,0.049864]
[1644264835619,0.56749264,44384.0,44380.0,0.049864]
[1644264836018,0.56749264,44384.0,44380.0,0.0506375]
[1644264836218,0.56749264,44384.0,44380.0,0.05087685]
[1644264836668,0.56749264,44384.0,44380.0,0.0506375]
[1644264836870,0.31640052,44384.0,44380.0,0.049864]
[1644264837069,0.31640052,44384.0,44383.0,0.049864]
[1644264837471,0.000136,44388.0,44383.0,0.049864]
[1644264837668,0.00021423,44388.0,44383.0,0.049864]
[1644264837869,0.00021423,44388.0,44383.0,0.12687061]
[1644264838369,0.00021423,44388.0,44383.0,0.12764407]
[1644264838772,0.00021423,44388.0,44387.0,0.049864]
[1644264838973,7.823e-05,44388.0,44387.0,0.094964]
[1644264839174,7.823e-05,44388.0,44387.0,0.466319]
[1644264839572,7.823e-05,44388.0,44387.0,0.516319]
[1644264839773,7.823e-05,44388.0,44387.0,0.84274523]
[1644264839978,7.823e-05,44388.0,44387.0,0.466319]
[1644264840430,7.823e-05,44388.0,44387.0,0.144964]
[1644264841427,7.823e-05,44388.0,44387.0,0.466319]
[1644264842828,7.823e-05,44388.0,44387.0,0.144964]
[1644264844030,0.64299521,44394.0,44388.0,0.6]
[1644264844279,0.64299521,44394.0,44391.0,0.049864]
[1644264844280,0.38422123,44394.0,44391.0,0.049864]
[1644264845380,0.2506016,44392.0,44391.0,0.049864]
[1644264845578,0.25067983,44392.0,44391.0,0.049864]
[1644264845779,0.25067983,44392.0,44382.0,0.30106993]
[1644264845780,0.25067983,44392.0,44382.0,0.19024463]
[1644264845986,0.00174516,44388.0,44382.0,0.01976528]
[1644264846179,0.00182339,44388.0,44382.0,0.01976528]
[1644264846579,0.56416666,44384.0,44382.0,0.01976528]
[1644264846779,0.56416666,44384.0,44381.0,0.05010335]
[1644264846979,0.56416666,44384.0,44381.0,0.049864]
[1644264847779,0.35620724,44384.0,44381.0,0.049864]
[1644264848227,0.21741278,44387.0,44381.0,0.049864]
[1644264848228,0.21741278,44387.0,44381.0,0.05010335]
[1644264848423,0.21749101,44387.0,44381.0,0.05010335]
[1644264848823,0.24643592,44387.0,44384.0,0.049864]
[1644264849224,0.53724633,44387.0,44384.0,0.049864]
[1644264850127,0.77583846,44387.0,44384.0,0.049864]
[1644264850324,0.53724633,44387.0,44384.0,0.049864]
[1644264850524,0.53724633,44387.0,44384.0,0.05010335]
[1644264850724,0.53898975,44387.0,44384.0,0.05010335]
[1644264851024,0.29263206,44387.0,44384.0,0.05010335]
[1644264851232,0.00182165,44387.0,44384.0,0.05010335]
[1644264851679,0.00182165,44387.0,44384.0,0.049864]
[1644264851879,0.00182165,44387.0,44385.0,0.321355]
[1644264852077,0.00182165,44387.0,44384.0,0.05010335]
[1644264852477,0.00182165,44387.0,44385.0,0.06997137]
[1644264853679,0.00182165,44387.0,44384.0,0.10010335]
[1644264854080,0.00182165,44387.0,44384.0,0.10087739]
[1644264854281,0.00182165,44387.0,44384.0,0.10063804]
[1644264854681,0.00182165,44387.0,44384.0,0.05077404]
[1644264854880,0.00182165,44387.0,44386.0,0.049864]
[1644264856625,0.00182165,44387.0,44385.0,0.00023935]
[1644264856626,0.50933412,44387.0,44385.0,0.00023935]
[1644264856825,0.50933412,44387.0,44384.0,0.00101338]
[1644264856826,0.000136,44386.0,44384.0,0.00101338]
[1644264857025,0.00021423,44386.0,44384.0,0.00077403]
[1644264857425,0.28030348,44385.0,44379.0,0.00023935]
[1644264857626,0.28038171,44385.0,44383.0,0.00077405]
[1644264857825,0.000136,44384.0,44383.0,0.00077405]
[1644264858027,0.00021423,44384.0,44383.0,0.00077405]
[1644264858626,0.00021423,44384.0,44380.0,0.00023935]
[1644264858826,0.00021423,44384.0,44381.0,0.00077407]
[1644264859474,0.27871562,44385.0,44381.0,0.00077407]
[1644264859776,0.27871562,44385.0,44374.0,0.01981177]
[1644264859777,0.5,44384.0,44371.0,0.14545193]
[1644264859974,0.5,44384.0,44381.0,0.00101394]
[1644264860174,0.495,44384.0,44381.0,0.00077407]
[1644264860975,0.495,44384.0,44375.0,0.00023987]
[1644264861176,0.495,44384.0,44372.0,0.00023987]
[1644264861386,0.41495997,44384.0,44372.0,0.056328]
[1644264861681,0.41495997,44384.0,44372.0,0.05656787]
[1644264861878,0.4148519,44384.0,44372.0,0.05656787]
[1644264862076,0.22912508,44383.0,44372.0,0.05656787]
[1644264862276,0.53386643,44383.0,44372.0,0.05656787]
[1644264862478,0.00019344,44380.0,44374.0,0.056328]
[1644264863023,0.25604695,44380.0,44374.0,0.056328]
[1644264863326,0.25604695,44380.0,44373.0,0.00023987]
[1644264863521,0.05,44378.0,44372.0,0.00023987]
[1644264863822,0.0006448,44379.0,44373.0,0.00053432]
[1644264864122,0.29088472,44376.0,44373.0,0.00053432]
[1644264864723,0.02109948,44377.0,44372.0,0.00023987]
[1644264864923,0.02109948,44377.0,44371.0,0.10657387]
[1644264865124,0.02109948,44377.0,44371.0,0.056334]
[1644264865325,0.02109948,44377.0,44374.0,0.321355]
[1644264865525,0.02109948,44377.0,44374.0,0.377673]
[1644264865727,0.02109948,44377.0,44375.0,0.321355]
[1644264865923,0.02109948,44377.0,44375.0,0.421355]
[1644264866122,0.02109948,44377.0,44376.0,0.366455]
[1644264866323,0.02109948,44377.0,44376.0,0.321355]
[1644264866981,0.01943169,44381.0,44377.0,0.10137726]
[1644264867278,0.01943169,44381.0,44379.0,0.056321]
[1644264869080,0.0006454,44382.0,44378.0,0.05656087]
[1644264869484,0.00173647,44383.0,44378.0,0.05656087]
[1644264869685,0.0006454,44382.0,44378.0,0.05656087]
[1644264869886,0.0006454,44382.0,44379.0,0.42343769]
[1644264870082,0.0006454,44382.0,44380.0,0.05631]
[1644264870282,0.0006454,44382.0,44381.0,0.3358192]
[1644264870530,0.0006454,44382.0,44381.0,0.8302032]
[1644264870728,2.02147594,44385.0,44382.0,0.056307]
[1644264870931,0.0006454,44384.0,44383.0,0.0451]
[1644264871127,1.93835541,44385.0,44383.0,0.34174948]
[1644264871329,1.93835541,44385.0,44384.0,0.3950474]
[1644264871629,1.93835541,44385.0,44384.0,0.96868417]
[1644264871827,1.93835541,44385.0,44384.0,0.93912814]
[1644264872228,1.93835541,44385.0,44384.0,0.43232243]
[1644264872730,1.93835541,44385.0,44384.0,0.59818933]
[1644264873530,1.93835541,44385.0,44384.0,0.257719]
[1644264873930,1.93835541,44385.0,44384.0,0.157719]
[1644264875278,1.94009536,44385.0,44384.0,0.207719]
[1644264879935,1.94009536,44385.0,44384.0,0.157719]
[1644264880331,1.94009536,44385.0,44382.0,0.056307]
[1644264881532,1.94009536,44385.0,44381.0,0.00023987]
[1644264881533,0.34188977,44383.0,44381.0,0.00023987]
[1644264881784,0.34188977,44383.0,44380.0,0.00023987]
[1644264881785,0.05,44383.0,44380.0,0.00023987]
[1644264881985,0.05,44383.0,44378.0,0.00023987]
[1644264882184,0.05,44383.0,44376.0,0.00101431]
[1644264882384,0.23977101,44383.0,44376.0,0.00101431]
[1644264882588,0.05,44383.0,44377.0,0.056328]
[1644264882785,0.0208574,44383.0,44378.0,0.34216358]
[1644264882987,0.0208574,44383.0,44379.0,0.321355]
[1644264883185,0.0208574,44383.0,44379.0,0.32159487]
[1644264883587,0.0208574,44383.0,44379.0,0.05023987]
[1644264883787,0.0208574,44383.0,44379.0,0.10023987]
[1644264883987,0.0208574,44383.0,44379.0,0.05023987]
[1644264884186,0.0208574,44383.0,44379.0,0.10656187]
[1644264884387,0.0208574,44383.0,44380.0,0.112634]
[1644264884587,0.0208574,44383.0,44380.0,0.11287387]
[1644264885193,1.94009536,44385.0,44380.0,0.11287387]
[1644264885437,0.00173821,44384.0,44382.0,0.112626]
[1644264885826,0.00173821,44384.0,44383.0,0.1]
[1644264886426,0.00173821,44384.0,44383.0,0.156313]
[1644264886625,0.00173821,44384.0,44383.0,0.106313]
[1644264888029,0.05173821,44384.0,44383.0,0.106313]
[1644264888328,0.00173821,44384.0,44383.0,0.106313]
[1644264888727,0.00173821,44384.0,44383.0,0.05]
[1644264889978,1.86005359,44385.0,44383.0,0.05]
[1644264890979,1.86005359,44385.0,44383.0,0.0951]
[1644264891378,1.85905359,44385.0,44383.0,0.0951]
[1644264891982,1.85905359,44385.0,44383.0,0.19646282]
[1644264892181,1.85905359,44385.0,44384.0,0.05]
[1644264892380,1.85905359,44385.0,44383.0,0.0951]
[1644264893430,1.85905359,44385.0,44383.0,0.14015071]
[1644264893827,1.85905359,44385.0,44384.0,0.05]
[1644264895133,1.79269975,44385.0,44384.0,0.207725]
[1644264895334,1.79269975,44385.0,44384.0,0.52908]
[1644264895831,1.79269975,44385.0,44384.0,1.12256584]
[1644264896029,1.42432151,44385.0,44384.0,1.1858897]
[1644264896236,0.0001,44400.0,44390.0,0.056292]
[1644264896436,0.0001,44400.0,44389.0,0.112583]
[1644264896437,0.0001,44400.0,44399.0,0.05]
[1644264896689,0.1,44417.0,44400.0,1.43429243]
[1644264896888,0.1,44417.0,44410.0,0.5639]
[1644264897088,0.1,44417.0,44414.0,0.25184876]
[1644264897089,0.1352,44416.0,44414.0,0.25184876]
[1644264897288,0.1,44417.0,44415.0,0.366455]
[1644264897490,0.1,44417.0,44415.0,0.416455]
[1644264897687,0.1,44417.0,44416.0,0.321355]
[1644264897886,0.1,44417.0,44416.0,0.466455]
[1644264898786,0.0873,44417.0,44416.0,0.466455]
[1644264899387,0.0873,44417.0,44416.0,0.522722]
[1644264899788,0.1373,44417.0,44416.0,0.366455]
[1644264899998,0.0873,44417.0,44416.0,0.366455]
[1644264900732,0.0873,44417.0,44416.0,0.43260877]
[1644264901533,0.0873,44417.0,44416.0,0.53260877]
[1644264901931,0.0873,44417.0,44416.0,0.43260877]
[1644264902334,0.1373,44417.0,44416.0,0.0451]
[1644264902932,0.64606545,44417.0,44416.0,0.0451]
[1644264903335,0.28731358,44409.0,44407.0,0.06323117]
[1644264903539,0.05,44408.0,44407.0,0.08257154]
[1644264903734,0.05,44408.0,44407.0,0.06444037]
[1644264904381,0.25042754,44408.0,44407.0,0.05944037]
[1644264904681,0.25042754,44408.0,44407.0,0.01934037]
[1644264905083,0.25042754,44408.0,44407.0,4.037e-05]
[1644264905382,0.23803589,44403.0,44398.0,0.02146304]
[1644264905583,0.05,44401.0,44398.0,0.02146304]
[1644264906184,0.25733686,44401.0,44398.0,0.02146304]
[1644264907386,0.05,44401.0,44398.0,0.02146304]
[1644264907786,0.05,44405.0,44398.0,0.02146304]
[1644264908034,0.05,44404.0,44398.0,0.02146304]
[1644264908435,0.05,44401.0,44398.0,0.02146304]
[1644264909034,0.22701477,44399.0,44398.0,0.02146304]
[1644264909334,0.24887683,44400.0,44398.0,0.02146304]
[1644264909733,0.20207683,44400.0,44398.0,0.02146304]
[1644264910433,0.25220438,44399.0,44398.0,0.02146304]
[1644264910637,0.53406658,44399.0,44398.0,0.02146304]
[1644264911037,1.4,44398.0,44381.0,0.12875631]
[1644264911239,0.0451,44397.0,44380.0,0.06759661]
[1644264911440,0.05,44381.0,44380.0,0.06759661]
[1644264911685,0.26724507,44389.0,44387.0,0.00074553]
[1644264911886,0.05,44388.0,44387.0,0.00074553]
[1644264912684,0.05,44388.0,44381.0,0.056317]
[1644264912884,0.05,44388.0,44385.0,0.000745]
[1644264913791,0.3716,44394.0,44385.0,0.000745]
[1644264913994,0.3716,44394.0,44386.0,0.0451]
[1644264914193,0.3588649,44394.0,44388.0,0.321355]
[1644264914389,0.02146304,44399.0,44388.0,0.421355]
[1644264914390,0.06770932,44389.0,44388.0,0.421355]
[1644264914589,0.34283454,44389.0,44388.0,0.421355]
[1644264914789,0.34283454,44389.0,44388.0,0.521355]
[1644264914990,0.34283454,44389.0,44388.0,0.520855]
[1644264915191,0.34283454,44389.0,44388.0,0.1995]
[1644264915632,0.13541603,44389.0,44386.0,0.00074406]
[1644264916433,0.13541603,44389.0,44386.0,0.056307]
[1644264916644,0.05,44387.0,44385.0,0.00074463]
[1644264916833,0.23724227,44386.0,44385.0,0.00074463]
[1644264917432,0.48219847,44386.0,44374.0,0.00023987]
[1644264917633,0.2449562,44386.0,44375.0,0.056322]